Cogmind - Beta 14 @@@ ROGUE MODE // 2024.09.25 @ 10:36:22 Player: Nika Jay Result: Self-destructed Performance ------------- Evolutions (2) 1000 Regions Visited (3) 600 Robots Destroyed (36) 180 Value Destroyed (802) 802 Prototype IDs (0) 0 Alien Tech Used (0) 0 Bonus (0) 0 TOTAL SCORE: 2582 Bonus ------- None Cogmind --------- Core Integrity 368/550 Matter 295/300 Energy 83/100 System Corruption 0% Temperature Warm (188) Movement Flying (130) Ox1 Location -8/Materials Parts ------- > --- POWER (1) -------- (None) > --- PROPULSION (4) --- Aluminum Leg Flight Unit > --- UTILITY (4) ------ Improved Terrain Scanner Hacking Suite > --- WEAPON (2) ------- Particle Cannon > --- INVENTORY (5) ---- Ion Engine Light Ion Engine Disposable Heat Sink Large Matter Pod (150) Particle Cannon Peak State ------------ > --- POWER ------------ Subdweller Power Source > --- PROPULSION ------- Aluminum Leg Aluminum Leg Aluminum Leg > --- UTILITY ---------- Medium Storage Unit Improved Terrain Scanner Seismic Detector Hacking Suite > --- WEAPON ----------- Subdweller Laser Battle Cannon > --- INVENTORY -------- Ion Engine Light Ion Engine Disposable Heat Sink Large Matter Pod Particle Cannon Particle Cannon Particle Cannon [Rating: 18] Favorites ----------- Power Ion Engine Engine Ion Engine Propulsion Aluminum Leg Leg Aluminum Leg Wheel Subdweller Monowheel Flight Unit Flight Unit Utility Medium Storage Unit Device Heat Sink Storage Medium Storage Unit Hackware Hacking Suite Weapon Particle Cannon Energy Gun Subdweller Laser Energy Cannon Particle Cannon Ballistic Gun Assault Rifle Ballistic Cannon Battle Cannon Build | -11 -10 -10 -8 ------- Run | Yrd Mat Sub Mat Slots Evolved 4 | . . . 4 Power . | . . . . Propulsion 2 | . . . 2 Utility 2 | . . . 2 Weapon . | . . . . Parts Attached 34 | 9 6 10 9 Power 6 | 2 1 3 . Engine 6 | 2 1 3 . Core . | . . . . Reactor . | . . . . Propulsion 11 | 2 1 4 4 Treads . | . . . . Leg 7 | 2 1 3 1 Wheel 1 | . . 1 . Hover . | . . . . Flight 3 | . . . 3 Utility 9 | 3 2 1 3 Device 6 | 2 1 1 2 Storage 2 | 1 1 . . Processor . | . . . . Hackware 1 | . . . 1 Protection . | . . . . Artifact . | . . . . Weapon 8 | 2 2 2 2 Energy Gun 2 | 1 . 1 . Energy Cannon 4 | . 2 . 2 Ballistic Gun 1 | 1 . . . Ballistic Cannon 1 | . . 1 . Launcher . | . . . . Special Weapon . | . . . . Impact Weapon . | . . . . Slashing Weapon . | . . . . Piercing Weapon . | . . . . Special Melee Weapon . | . . . . Unidentified Prototypes . | . . . . Parts Lost 9 | . . 2 7 Power . | . . . . Propulsion 5 | . . 1 4 Utility 2 | . . 1 1 Weapon 2 | . . . 2 Highest Loss Streak 6 | . . 1 6 To Critical Strikes . | . . . . Average Slot Usage (%) 98 | . 99 99 81 Engine 13 | . 14 14 8 Leg 27 | . 28 26 25 Device 13 | . 13 13 16 Storage 13 | . 14 14 8 Energy Gun 6 | . 3 9 8 Energy Cannon 14 | . 20 9 4 Ballistic Gun 1 | . 3 . . Ballistic Cannon 4 | . . 8 4 Peak Build Rating 18 | 9 12 12 18 Average Rating 10 | 6 10 10 16 On Entrance 7 | . 9 10 12 Naked Turns . | . . . . Heaviest Build 25 | 15 24 24 25 Greatest Support 30 | 20 20 20 30 Greatest Overweight (x) 2 | 2 1 2 1 Average Overweight (x) . | . . 1 . Largest Inventory Capacity 10 | 8 10 10 10 Average Capacity 9 | 7 9 10 9 Most Carried 10 | 5 10 10 8 Average Carried 7 | 2 7 9 6 Final Capacity 10 | 8 10 10 5 Final Carried 10 | 5 10 9 5 Class Distribution -------------------- 65% | Mutant 34% | Scavenger-Mutant Dominant Class ---------------- Mutant | -10/Materials Scavenger-Mutant | -10/Subcaves Scavenger-Mutant | -8/Materials Resources | -11 -10 -10 -8 ----------- Run | Yrd Mat Sub Mat Matter Collected 797 | 357 225 145 70 Remotely . | . . . . Salvage Created 1114 | 206 508 299 101 Parts 73 | 20 25 22 6 Haulers Intercepted 1 | . 1 . . Recyclers Shooed 1 | . 1 . . Parts Field Recycled . | . . . . Retrieved Matter . | . . . . Parts Self-Destructed 4 | . . 4 . Prevented . | . . . . Kills | -11 -10 -10 -8 ------- Run | Yrd Mat Sub Mat Combat Hostiles Destroyed 25 | . 14 7 4 Guns 7 | . 3 2 2 Cannons 15 | . 8 5 2 AOE 2 | . 2 . . Classes Destroyed 8 | 3 4 1 . Worker 2 | 2 . . . Tunneler 5 | 5 . . . Hauler 1 | . 1 . . Recycler 2 | 1 1 . . Operator 1 | . 1 . . Swarmer 9 | . 6 . 3 Grunt 9 | . 8 . 1 Subdweller 7 | . . 7 . Best Kill Streak 4 | 4 4 2 3 Combat Bots Only 4 | . 4 2 3 Max Kills in Single Turn 2 | 1 2 1 2 Gunslinging . | . . . . Exploded 2 | . 2 . . Melee . | . . . . Uniques/NPCs Destroyed . | . . . . Combat | -11 -10 -10 -8 -------- Run | Yrd Mat Sub Mat Hostile Shots Fired 114 | . 44 26 44 Missed 20 | . 5 7 8 Damage Taken 1282 | . 388 381 513 Core 304 | . 97 25 182 Absorbed by Shields . | . . . . Core Remaining (%) 75 | 100 . 51 . Volleys Fired 84 | 11 38 20 15 Largest 2 | 2 2 2 2 Hottest 136 | 70 136 136 128 Shots Fired 161 | 22 74 40 25 Gun 68 | 22 20 14 12 Cannon 93 | . 54 26 13 Launcher . | . . . . Special . | . . . . Kinetic 35 | 11 10 13 1 Thermal 126 | 11 64 27 24 Explosive . | . . . . Electromagnetic . | . . . . Robot Hit Streak 12 | 2 7 12 5 Robot Miss Streak 5 | 2 5 2 3 Penetration Max . | . . . . Secondary Targets . | . . . . Shots Hit Robots 101 | 11 47 27 16 Core Hits 51 | 9 24 13 5 Critical Kills 1 | . 1 . . Critical Parts Destroyed 1 | . . . 1 Critical Strikes 3 | . 2 . 1 Burn 1 | . 1 . . Meltdown 1 | . 1 . . Destroy 1 | . . . 1 Melee Attacks . | . . . . Impact . | . . . . Slashing . | . . . . Piercing . | . . . . Sneak Attacks . | . . . . Combat Hostiles . | . . . . Follow-up Attacks . | . . . . Damage Inflicted 2163 | 186 1098 528 351 Guns 658 | 150 192 150 166 Cannons 1228 | . 665 378 185 Explosions 215 | . 215 . . Melee . | . . . . Ramming 62 | 36 26 . . Kinetic 359 | 86 100 173 . Thermal 1527 | 64 757 355 351 Explosive 215 | . 215 . . Electromagnetic . | . . . . Impact . | . . . . Slashing . | . . . . Piercing . | . . . . Highest Corruption . | . . . . Average Corruption . | . . . . Corruption Purged . | . . . . Corruption Blocked . | . . . . Overload Shots . | . . . . Overflow Damage 23 | . 10 . 13 Projectiles 23 | . 10 . 13 Explosions . | . . . . Melee . | . . . . Knockbacks 2 | 1 . 1 . Impact 1 | 1 . . . Kinetic 1 | . . 1 . Secondary . | . . . . Self-Inflicted Damage . | . . . . Shots . | . . . . Rammed . | . . . . Targets Rammed 28 | 12 16 . . Kicked 28 | 12 16 . . Crushed . | . . . . Highest Temperature 453 | 63 420 1 453 Average Temperature 147 | 24 136 1 264 Received Heat Transfer 432 | . 108 36 288 Effects 9 | . 3 . 6 Shutdowns 2 | . . . 2 Interference 6 | . 3 . 3 Short Circuit 1 | . . . 1 Siege Activations . | . . . . Robots Corrupted . | . . . . Combat Hostiles . | . . . . Parts Fried . | . . . . Impact Corruptions . | . . . . Robots Melted 1 | . 1 . . Combat Hostiles 1 | . 1 . . Parts Melted 7 | . 4 2 1 Heat Transferred 2780 | 185 1517 545 533 Parts Sabotaged . | . . . . Parts Stolen . | . . . . Parts Stripped . | . . . . Power Chain Reactions . | . . . . Alert | -11 -10 -10 -8 ------- Run | Yrd Mat Sub Mat Peak Influence 370 | 40 370 . 90 Initial 26 | . 26 . . Average 185 | 14 242 . 36 Maximum Alert Level 1 | . 1 . . Low Security (%) 43 | 100 24 . 100 Level 1 56 | . 75 . . Level 2 . | . . . . Level 3 . | . . . . Level 4 . | . . . . Level 5 . | . . . . High Security . | . . . . Max Security . | . . . . Squads Dispatched 4 | . 3 . 1 Investigation 2 | . 2 . . Extermination . | . . . . Reinforcement 2 | . 1 . 1 Assault . | . . . . Garrison . | . . . . Intercept . | . . . . Searches Triggered . | . . . . Construction Impeded . | . . . . Haulers Reinforced . | . . . . Active Scanning Responses . | . . . . Cargo Convoy Interrupts . | . . . . Stealth | -11 -10 -10 -8 --------- Run | Yrd Mat Sub Mat Distress Signals . | . . . . Communications Jammed . | . . . . Distress Signals . | . . . . Times Spotted 44 | . 29 7 8 Peak Tracking Total 5 | . 4 2 5 Tactical Retreats 1 | . 1 . . Traps | -11 -10 -10 -8 ------- Run | Yrd Mat Sub Mat Traps Triggered 1 | . 1 . . Indirectly . | . . . . Trap Hack Attempts . | . . . . Triggered . | . . . . Disarmed . | . . . . Reprogrammed . | . . . . Reused . | . . . . Traps Extracted . | . . . . Installed . | . . . . Triggered . | . . . . Objects Rigged 1 | . 1 . . Exploded 1 | . 1 . . Machines | -11 -10 -10 -8 ---------- Run | Yrd Mat Sub Mat Machines Disabled 2 | . 2 . . Max in Single Turn 2 | . 2 . . Machines Repaired . | . . . . Machines Dismantled . | . . . . Machines Sabotaged . | . . . . Overloaded Fab Kills . | . . . . Hacking | -11 -10 -10 -8 --------- Run | Yrd Mat Sub Mat Machines Accessed 7 | . 7 . . Terminals 7 | . 7 . . Fabricators . | . . . . Repair Stations . | . . . . Recycling Units . | . . . . Scanalyzers . | . . . . Garrison Access . | . . . . Total Hacks 23 | . 23 . . Successful 14 | . 14 . . Failed 9 | . 9 . . Catastrophic 1 | . 1 . . Database Lockouts . | . . . . Manual 20 | . 20 . . Terminals 23 | . 23 . . Fabricators . | . . . . Repair Stations . | . . . . Recycling Units . | . . . . Scanalyzers . | . . . . Garrison Access . | . . . . Terminal Hacks 2 | . 2 . . Robot Analysis 1 | . 1 . . Terminal Index 1 | . 1 . . Fabricator Hacks . | . . . . Repair Station Hacks . | . . . . Recycling Unit Hacks . | . . . . Scanalyzer . | . . . . Garrison Access Hacks . | . . . . Unauthorized Hacks 12 | . 12 . . Terminals 12 | . 12 . . Track 1 | . 1 . . Botnet 6 | . 6 . . Detonate 1 | . 1 . . Skim 4 | . 4 . . Fabricators . | . . . . Repair Stations . | . . . . Recycling Units . | . . . . Scanalyzers . | . . . . Garrison Access . | . . . . Data Cores Recovered . | . . . . Used . | . . . . Hacking Detections 7 | . 7 . . Full Trace Events 2 | . 2 . . Feedback Events . | . . . . Feedback Blocked . | . . . . Robot Schematics Acquired . | . . . . Robots Built . | . . . . Authchips . | . . . . Time . | . . . . Total Robot Build Rating . | . . . . Part Schematics Acquired . | . . . . Parts Built . | . . . . Authchips . | . . . . Time . | . . . . Total Part Build Rating . | . . . . Parts Repaired . | . . . . Time . | . . . . Parts Recycled . | . . . . Recycled Matter . | . . . . Retrieved Matter . | . . . . Retrieved Components . | . . . . Parts Scanalyzed . | . . . . Part Schematics Acquired . | . . . . Parts Damaged . | . . . . Bothacking | -11 -10 -10 -8 ------------ Run | Yrd Mat Sub Mat Used RIF Installer . | . . . . Robots Hacked . | . . . . Non-combat . | . . . . Combat . | . . . . Robot Hacks Applied . | . . . . Relay Couplers Released . | . . . . Fabnet Peak Effective % . | . . . . Robots Rewired . | . . . . Allies Hacked . | . . . . Hacks Repelled . | . . . . Allies | -11 -10 -10 -8 -------- Run | Yrd Mat Sub Mat Total Allies . | . . . . Largest Group . | . . . . Highest-Rated Group . | . . . . Highest-Rated Ally . | . . . . Total Orders . | . . . . Ally Attacks . | . . . . Total Damage . | . . . . Kills . | . . . . Allies Corrupted . | . . . . Allies Melted . | . . . . Intel | -11 -10 -10 -8 ------- Run | Yrd Mat Sub Mat Robot Analysis Total 1 | . 1 . . Derelict Logs Recovered 1 | . . 1 . Drone Launches . | . . . . Drone Recoveries . | . . . . Exploration | -11 -10 -10 -8 ------------- Run | Yrd Mat Sub Mat Turns Passed 1883 | 168 783 826 106 Spaces Moved 886 | 90 361 398 37 Core 9 | 9 . . . Treads . | . . . . Legs 810 | 81 361 336 32 Wheels 62 | . . 62 . Hover . | . . . . Flight 5 | . . . 5 Fastest Speed 47 | 50 120 120 47 Average Speed 164 | 115 165 179 116 Slowest Speed 260 | 150 190 260 190 Overloaded Moves . | . . . . Propulsion Burnouts . | . . . . Robots Hopped . | . . . . Cave-ins Triggered . | . . . . Exploration Rate (%) 25 | 4 71 24 4 Regions Visited 3 Branch Regions 1 Pre-discovered Areas . | . . . . Known Exits Taken . | . . . . Unknown Exits Taken 3 | 1 1 1 . Scrap Searched . | . . . . Spaces Dug . | . . . . Terrain Destroyed 28 | . 27 . 1 Melee . | . . . . Projectile 1 | . . . 1 AOE 27 | . 27 . . Terrain Rammed . | . . . . Walls Destroyed . | . . . . Machines Disabled . | . . . . Actions | -11 -10 -10 -8 --------- Run | Yrd Mat Sub Mat Total 1131 | 125 460 471 75 Wait 68 | . 26 33 9 Move 883 | 89 360 397 37 Hop . | . . . . Pick Up 11 | 4 5 2 . Fast Attach 18 | 7 3 4 4 Attach 6 | . . 1 5 Detach 6 | . 3 1 2 Swap 10 | 2 3 5 . Drop 17 | . 6 8 3 Fire 84 | 11 38 20 15 Melee . | . . . . Ram . | . . . . Kick 28 | 12 16 . . Crush . | . . . . Escape Stasis . | . . . . Rewire . | . . . . Trap . | . . . . Miscellaneous . | . . . . Route ------- -11/Scrapyard -10/Materials (discovered 3 exits: [*Mat x2] / [*Sub]) -10/Subcaves -8/Materials History --------- Turn | Location | Event 7 | -11/Scrapyard | Discovered new exit (range 16) 169 | -11/Scrapyard | Entered Materials 311 | -10/Materials | Build established: Mutant 344 | -10/Materials | Discovered new exit (range 6) 679 | -10/Materials | Discovered new exit (range 8) 928 | -10/Materials | Discovered new exit (range 8) 952 | -10/Materials | Entered Subcaves 1492 | -10/Subcaves | Build established: Scavenger-Mutant 1586 | -10/Subcaves | Shifting Twisted Machinery released Piercing Trap 1623 | -10/Subcaves | Learned Materials terminal intel 1629 | -10/Subcaves | Discovered new exit (range 12) 1778 | -10/Subcaves | Entered Materials 1778 | -8/Materials | Evolved 4 slots: Propulsion x2, Utility x2 1779 | -8/Materials | Loaded intel: 12 terminal locations 1884 | -8/Materials | Self-destructed Last Messages --------------- 01864_ G-47 Trooper heat spikes uncontrollably. 01865_ G-47 Trooper overheating. 01866_ G-47 Trooper suffers critical hit (Destroy). 01866_ Destroyed Lgt. Nuclear Core. 01867_ G-47 Trooper overheating. 01868_ G-47 Trooper destroyed. 01870_ Acquired 53 matter. 01871_ Aluminum Leg destroyed. 01871_ Dropped Med. Storage Unit. 01873_ Acquired Flight Unit. 01874_ Aluminum Leg destroyed. 01875_ G-50 Soldier suffers critical hit (Burn). 01876_ Sub. Laser destroyed. 01876_ Critical hit (Burn: +37). 01877_ Acquired Flight Unit. 01878_ Seismic Detector destroyed. 01878_ Flight Unit destroyed. 01878_ Dropped Sub. Power Source. 01881_ Acquired Flight Unit. 01884_ Flight Unit destroyed. Map ----- +----------------------------------------------------+ | ?????????????????????????????????????????????????? | | ?????????????????????????????????????????????????? | | ?????????????????????????????????????????????????? | | ?????????????????????????????????????????????????? | | ?????????????????????????????????????????????????? | | ?????????????????????????????????????????????????? | | ?????????????????????????????????????????????????? | | ?????????????????????????????????????????????????? | | ?????????????????????????????????????????????????? | | ????????????????????"T"???????#??????????????????? | | ?????????????????????????????????????????????????? | | ?????????????????????????????????#???????????????? | | ?????????????????????????????????????????????????? | | ??????????????????#?????#?????#???????#??????????? | | ?????????????????????????????????#?#?????????????? | | ?????????????????????????????????????????????????? | | ???????????????????????#?????????????????????????? | | ????????????????#?????????????????????#??????????? | | ?????????????????????????????#??#???????#????????? | | ????????????????????????????#????????????#???????? | | ???????????????????????#?????????#???????????????? | | ????????????????????????#????????????????????????? | | ???????????###### ##########################?????? | | ?????????? g #?????? | | ?????????? g %* #?????? | | ?????????? @g [* ! #?#???? | | ??????????????####+##########%+#############?????? | | ?????????????????????????# !]=%[ #???#?????????? | | ?????????????????????????# * #??????#??#???? | | ?????????????????????????# #?????????????? | | ?????????????????????????# """ ##??????##????? | | ?????????????????????????# """ ##????????????? | | ?????????????????????????# """ #?????????????? | | ?????????????????????????# #?????????????? | | ????????????????????????## ! #?????????????? | | ?????????????????????????###########?????????????? | | ???????????????#??#?????????????????#????????????? | | ????????????????#????????????????????????#???????? | | ?????????????????????????????????????????????????? | | ?????????????????????????????????????????????????? | | | | | | | | | | | | | | | | | | | | | +----------------------------------------------------+ Best States ------------- Heat Dissipation 35 Coolant Potential 50 Energy Generation 15 Energy Capacity 250 Matter Stores 300 Matter Capacity 300 Sight Range 16 Terrain Scan Range 16 Terrain Scan Density 10 Evasion (%) 55 Offensive Hacking 10 Item Schematics ----------------- None Robot Schematics ------------------ None Fabricated ------------ Nothing Alien Tech Used ----------------- None Achievements -------------- None Challenges ------------ None Game ------ Seed AmuletAutogunDerivative Manual? 0 Play Time 00:25:13 Cumulative 43.6 hours Start 2024.09.25 @ 10:09:53 End 2024.09.25 @ 10:36:22 Sessions 1 Manual Loads 0 Difficulty Rogue Special Mode None Game No. 29 Rogue 25 Adventurer 2 Explorer 2 Win Type - Total 0 Types 0/0/0/0/0/0/0/0/0 Lore% 28 Gallery% 32 Achievement% 33 Wizard Run 0 Options --------- Layout 0 ASCII 0 Keyboard 1 Movement Arrows Keybinds 1 Fullscreen 2 Font 18/SmallcapsGlow Map View 76x50 Zoom Use 0% Tactical HUD 1 Map Filters NONE Filters NONE Steam 1 RUN: 41d8aeea-fff8-431d-9097-17fceacf9a95